fUST/lending_fUST_20250214
["ID","MTS","AMOUNT","RATE_DAILY","PERIOD"]
[353001681,1739483458023,-150.0,0.00014207,2]
[353001682,1739483458032,-1970.0,0.00014207,2]
[353001683,1739483458041,-538.0,0.00014207,2]
[353001684,1739483458050,-2293.0,0.00014207,2]
[353001685,1739483458059,-396.0,0.00014207,2]
[353001686,1739483458069,-168.991923,0.0001421,5]
[353001687,1739483458079,-465.70798247,0.00014247,2]
[353001688,1739483458088,-281.523429,0.00014272,2]
[353001689,1739483458098,-201.303637,0.00014272,2]
[353001690,1739483458107,-281.523429,0.00014272,2]
[353001691,1739483458116,-201.303637,0.00014272,2]
[353001692,1739483458125,-151.0,0.00014272,2]
[353001693,1739483458135,-1225.323567,0.00014272,2]
[353001694,1739483458144,-1225.323567,0.00014272,2]
[353001695,1739483458153,-804.348746,0.00014272,2]
[353001696,1739483458163,-804.348746,0.00014272,2]
[353001697,1739483458172,-353.704374,0.00014273,2]
[353001698,1739483458182,-353.704374,0.00014273,2]
[353001699,1739483458192,-379.755366,0.00014273,2]
[353001700,1739483458203,-379.755366,0.00014273,2]
[353001701,1739483458213,-500.0,0.00014273,2]
[353001702,1739483458222,-500.0,0.00014273,2]
[353001703,1739483458231,-500.0,0.00014273,2]
[353001704,1739483458241,-500.0,0.00014273,2]
[353001705,1739483458251,-231.180894,0.00014273,2]
[353001706,1739483458260,-500.0,0.00014273,2]
[353001707,1739483458269,-822.8,0.00014273,2]
[353001708,1739483458279,-1141.48,0.00014273,2]
[353001709,1739483458289,-500.0,0.00014273,2]
[353001710,1739483458299,-1198.4,0.00014273,2]
[353001711,1739483458308,-2238.69,0.00014273,2]
[353001712,1739483458317,-500.0,0.00014273,2]
[353001713,1739483458327,-500.0,0.00014273,2]
[353001714,1739483458336,-500.0,0.00014273,2]
[353001715,1739483458346,-500.0,0.00014273,2]
[353001716,1739483458356,-7564.99,0.00014273,2]
[353001717,1739483458365,-2098.112538,0.00014273,2]
[353001718,1739483458375,-1179.42,0.00014273,2]
[353001719,1739483458384,-2098.112538,0.00014273,2]
[353001720,1739483458393,-500.0,0.00014273,2]
[353001721,1739483458505,-500.0,0.00014273,2]
[353001722,1739483458515,-500.0,0.00014273,2]
[353001723,1739483458525,-1262.91,0.00014273,2]
[353001724,1739483458534,-568.185399,0.00014273,2]
[353001725,1739483458543,-500.0,0.00014273,2]
[353001726,1739483458553,-268.09023405,0.00014273,2]
[353001727,1739483458562,-4151.97,0.00014273,2]
[353001728,1739483458572,-568.185399,0.00014273,2]
[353001729,1739483458581,-654.34,0.00014273,2]
[353001730,1739483458591,-500.0,0.00014273,2]
[353001731,1739483458601,-151.0,0.00014273,2]
[353001732,1739483458610,-1657.394251,0.00014273,2]
[353001733,1739483458620,-1657.394251,0.00014273,2]
[353001734,1739483458630,-501.6,0.00014273,2]
[353001735,1739483458640,-483.78332322,0.00014273,2]
[353001736,1739483458649,-500.0,0.00014273,2]
[353001737,1739483458659,-151.0,0.00014273,2]
[353001738,1739483458668,-536.177749,0.00014273,2]
[353001739,1739483458678,-536.177749,0.00014273,2]
[353001740,1739483458688,-500.0,0.00014273,2]
[353001741,1739483458697,-680.2955,0.00014273,2]
[353001742,1739483458706,-680.2955,0.00014273,2]
[353001743,1739483458716,-2812.242156,0.00014273,2]
[353001744,1739483458726,-737.85,0.00014273,2]
[353001745,1739483458735,-154.364751,0.00014273,2]
[353001746,1739483458745,-2812.242156,0.00014273,2]
[353001747,1739483458754,-154.364751,0.00014273,2]
[353001748,1739483458763,-844.56,0.00014273,2]
[353001749,1739483458772,-500.0,0.00014273,2]
[353001750,1739483458782,-500.0,0.00014273,2]
[353001751,1739483458791,-841.19,0.00014273,2]
[353001752,1739483458801,-515.485591,0.00014273,2]
[353001753,1739483458811,-515.485591,0.00014273,2]
[353001754,1739483458820,-649.83,0.00014273,2]
[353001755,1739483458829,-1503.25,0.00014273,2]
[353001756,1739483458839,-151.0,0.000143,2]
[353001757,1739483458848,-1247.739229,0.000143,2]
[353001758,1739483458858,-1247.739229,0.000143,2]
[353001759,1739483458868,-151.0,0.000143,2]
[353001760,1739483458877,-2310.80492803,0.00014338,2]
[353001761,1739483458888,-998.2657875,0.00014346,2]
[353001762,1739483458898,-151.0,0.00014355,2]
[353001763,1739483458909,-2238.69,0.00014355,2]
[353001764,1739483458919,-500.0,0.00014355,2]
[353001765,1739483458930,-411.4399,0.00014356,2]
[353001766,1739483458941,-411.4399,0.00014356,2]
[353001767,1739483458951,-500.0,0.00014356,2]
[353001768,1739483458962,-368.20074,0.00014356,2]
[353001769,1739483458971,-500.0,0.00014356,2]
[353001770,1739483458980,-368.20074,0.00014356,2]
[353001771,1739483458989,-313.57191,0.00014356,2]
[353001772,1739483458999,-313.57191,0.00014356,2]
[353001773,1739483459008,-500.0,0.00014356,2]
[353001774,1739483459018,-151.0,0.00014356,2]
[353001775,1739483459027,-151.0,0.00014356,2]
[353001776,1739483459036,-151.0,0.00014356,2]
[353001777,1739483459046,-500.0,0.00014356,2]
[353001778,1739483459056,-500.0,0.00014356,2]
[353001779,1739483459065,-822.8,0.00014356,2]
[353001780,1739483459075,-1141.48,0.00014356,2]
[353001781,1739483459084,-500.0,0.00014356,2]
[353001782,1739483459093,-1198.4,0.00014356,2]
[353001783,1739483459102,-500.0,0.00014356,2]
[353001784,1739483459112,-632.25496302,0.00014356,2]
[353001785,1739483459121,-500.0,0.00014356,2]
[353001786,1739483459130,-7564.99,0.00014356,2]
[353001787,1739483459139,-1179.42,0.00014356,2]
[353001788,1739483459148,-500.0,0.00014356,2]
[353001789,1739483459158,-500.0,0.00014356,2]
[353001790,1739483459167,-500.0,0.00014356,2]
[353001791,1739483459177,-1262.91,0.00014356,2]
[353001792,1739483459187,-500.0,0.00014356,2]
[353001793,1739483459196,-4151.97,0.00014356,2]
[353001794,1739483459209,-654.34,0.00014356,2]
[353001795,1739483459220,-500.0,0.00014356,2]
[353001796,1739483459229,-501.6,0.00014356,2]
[353001797,1739483459240,-640.81335942,0.00014356,2]
[353001798,1739483459251,-500.0,0.00014356,2]
[353001799,1739483459261,-737.85,0.00014356,2]
[353001800,1739483459271,-844.56,0.00014356,2]
[353001801,1739483459282,-500.0,0.00014356,2]
[353001802,1739483459292,-500.0,0.00014356,2]
[353001803,1739483459302,-841.19,0.00014356,2]
[353001804,1739483459312,-649.83,0.00014356,2]
[353001805,1739483459322,-1503.25,0.00014356,2]
[353001806,1739483459331,-151.0,0.00014398,2]
[353001807,1739483459340,-151.0,0.00014398,2]
[353001808,1739483459350,-279.292744,0.00014398,2]
[353001809,1739483459360,-194.052944,0.00014398,2]
[353001810,1739483459370,-1364.363296,0.00014398,2]
[353001811,1739483459379,-1364.363296,0.00014398,2]
[353001812,1739483459388,-151.0,0.00014398,2]
[353001813,1739483459398,-151.0,0.00014398,2]
[353001814,1739483459407,-151.0,0.00014398,2]
[353001815,1739483459416,-151.0,0.00014398,2]
[353001816,1739483459425,-151.0,0.00014398,2]
[353001817,1739483459435,-411.4399,0.00014398,2]
[353001818,1739483459444,-411.4399,0.00014398,2]
[353001819,1739483459454,-368.20074,0.00014398,2]
[353001820,1739483459463,-368.20074,0.00014398,2]
[353001821,1739483459473,-313.57191,0.00014398,2]
[353001822,1739483459482,-313.57191,0.00014398,2]
[353001823,1739483459492,-151.0,0.00014398,2]
[353001824,1739483459502,-158.147085,0.00014398,2]
[353001825,1739483459511,-151.0,0.00014398,2]
[353001826,1739483459521,-1247.739229,0.00014398,2]
[353001827,1739483459531,-1247.739229,0.00014398,2]
[353001828,1739483459540,-151.0,0.00014398,2]
[353001829,1739483459551,-353.704374,0.00014399,2]
[353001830,1739483459561,-353.704374,0.00014399,2]
[353001831,1739483459570,-379.755366,0.00014399,2]
[353001832,1739483459580,-379.755366,0.00014399,2]
[353001833,1739483459590,-151.0,0.00014399,2]
[353001834,1739483459600,-151.0,0.00014399,2]
[353001835,1739483459609,-151.0,0.00014399,2]
[353001836,1739483459619,-880.957763,0.00014399,2]
[353001837,1739483459629,-880.957763,0.00014399,2]
[353001838,1739483459641,-151.0,0.00014399,2]
[353001839,1739483459652,-151.0,0.00014399,2]
[353001840,1739483459662,-880.957763,0.00014399,2]
[353001841,1739483459671,-880.957763,0.00014399,2]
[353001842,1739483459681,-151.0,0.00014399,2]
[353001843,1739483459691,-411.4399,0.00014399,2]
[353001844,1739483459700,-158.339139,0.00014399,2]
[353001845,1739483459710,-151.0,0.00014399,2]
[353001846,1739483459719,-151.0,0.00014399,2]
[353001847,1739483459729,-411.4399,0.00014399,2]
[353001848,1739483459739,-368.20074,0.00014399,2]
[353001849,1739483459748,-368.20074,0.00014399,2]
[353001850,1739483459759,-313.57191,0.00014399,2]
[353001851,1739483459769,-313.57191,0.00014399,2]
[353001852,1739483459779,-151.0,0.00014399,2]
[353001853,1739483459789,-151.0,0.00014399,2]
[353001854,1739483459798,-1247.739229,0.00014399,2]
[353001855,1739483459808,-1247.739229,0.00014399,2]
[353001856,1739483459818,-151.0,0.00014399,2]
[353001857,1739483459828,-231.180894,0.00014399,2]
[353001858,1739483459838,-281.523429,0.00014399,2]
[353001859,1739483459847,-201.303637,0.00014399,2]
[353001860,1739483459857,-281.523429,0.00014399,2]
[353001861,1739483459867,-201.303637,0.00014399,2]
[353001862,1739483459877,-151.0,0.00014399,2]
[353001863,1739483459886,-1225.323567,0.00014399,2]
[353001864,1739483459895,-1225.323567,0.00014399,2]
[353001865,1739483459905,-804.348746,0.00014399,2]
[353001866,1739483459915,-804.348746,0.00014399,2]
[353001867,1739483459924,-2098.112538,0.00014399,2]
[353001868,1739483459934,-2098.112538,0.00014399,2]
[353001869,1739483459944,-568.185399,0.00014399,2]
[353001870,1739483459953,-568.185399,0.00014399,2]
[353001871,1739483459963,-1657.394251,0.00014399,2]
[353001872,1739483459973,-1657.394251,0.00014399,2]
[353001873,1739483459983,-151.0,0.00014399,2]
[353001874,1739483459992,-536.177749,0.00014399,2]
[353001875,1739483460002,-536.177749,0.00014399,2]
[353001876,1739483460011,-680.2955,0.00014399,2]
[353001877,1739483460021,-680.2955,0.00014399,2]
[353001878,1739483460032,-2812.242156,0.00014399,2]
[353001879,1739483460044,-154.364751,0.00014399,2]
[353001880,1739483460054,-2812.242156,0.00014399,2]
[353001881,1739483460062,-154.364751,0.00014399,2]
[353001882,1739483460072,-119533.02148692,0.000144,5]
[353001883,1739483460218,-251048.55568268,0.000144,5]
[353001884,1739483460231,-1909.23,0.000144,5]
[353001885,1739483460243,-919.299998,0.000144,5]
[353001886,1739483460255,-5025.8283,0.000144,5]
[353001968,1739484635162,-361.0,0.00010685,2]
[353001969,1739484635172,-5591.3479203,0.00012668,2]
[353001970,1739484635181,-203.4857022,0.00012702,2]
[353001971,1739484635190,-1100.0,0.00012993,2]
[353001972,1739484635199,-1364.38445013,0.00013598,2]
[353001973,1739484635211,-183.0,0.00013672,2]
[353001974,1739484635221,-500.0,0.00013673,2]
[353001975,1739484635230,-534.55119156,0.00013673,2]
[353001976,1739484635239,-152.71899449,0.00013673,2]
[353001977,1739484635249,-500.0,0.00013673,2]
[353001978,1739484635258,-312.94139784,0.00013673,2]
[353001979,1739484635269,-500.37266573,0.00013673,2]
[353001980,1739484635278,-212.77483221,0.00013673,2]
[353001981,1739484635287,-161.07361219,0.00013673,2]
[353001982,1739484635297,-269.08618146,0.00013673,2]
[353001983,1739484635309,-500.0,0.00013673,2]
[353001984,1739484635319,-500.0,0.00013673,2]
[353001985,1739484635328,-502.45024113,0.00013673,2]
[353001986,1739484635338,-500.0,0.00013697,2]
[353001987,1739484635347,-199.96489613,0.00013697,2]
[353001988,1739484635357,-200.0,0.00013697,2]
[353001989,1739484635366,-451.63976033,0.00013698,2]
[353001990,1739484635376,-500.0,0.00013698,2]
[353001991,1739484635386,-500.0,0.00013698,2]
[353001992,1739484635395,-500.0,0.00013698,2]
[353001993,1739484635404,-500.0,0.00013698,2]
[353001994,1739484635414,-500.0,0.00013698,2]
[353001995,1739484635424,-500.0,0.00013698,2]
[353001996,1739484635434,-500.0,0.00013698,2]
[353001998,1739484635443,-285.56613833,0.00013698,2]
[353002000,1739484635454,-32.836379,0.00013698,2]
[353002001,1739484635471,-500.0,0.00013698,2]
[353002002,1739484635481,-112.540291,0.00013698,2]
[353002003,1739484635499,-318.7894588,0.00013698,2]
[353002004,1739484635508,-500.0,0.00013698,2]
[353002005,1739484635518,-500.0,0.00013698,2]
[353002006,1739484635528,-500.0,0.00013698,2]
[353002007,1739484635537,-500.0,0.00013698,2]
[353002008,1739484635547,-500.0,0.00013698,2]
[353002009,1739484635557,-183.77022178,0.00013698,2]
[353002010,1739484635567,-500.0,0.00013698,2]
[353002011,1739484635576,-500.0,0.00013698,2]
[353002012,1739484635585,-500.0,0.00013698,2]
[353002013,1739484635595,-500.0,0.00013698,2]
[353002014,1739484635605,-500.0,0.00013698,2]
[353002015,1739484635618,-500.0,0.00013698,2]
[353002016,1739484635628,-500.0,0.00013698,2]
[353002017,1739484635639,-500.0,0.00013698,2]
[353002018,1739484635648,-500.0,0.00013698,2]
[353002019,1739484635658,-500.0,0.00013698,2]
[353002020,1739484635667,-315.89538786,0.00013698,2]
[353002024,1739484637825,-184.10461214,0.00013698,2]
[353002025,1739484637835,-500.0,0.00013698,2]
[353002026,1739484637845,-500.0,0.00013698,2]
[353002028,1739484637855,-500.0,0.00013698,2]
[353002029,1739484637864,-500.0,0.00013698,2]
[353002031,1739484637873,-500.0,0.00013698,2]
[353002033,1739484637884,-500.0,0.00013698,2]
[353002035,1739484637894,-624.69718362,0.00013698,2]
[353002036,1739484637903,-508.08980421,0.00013698,2]
[353002037,1739484637912,-500.0,0.00013698,2]
[353002038,1739484637922,-54.19404416,0.00013698,2]
[353002039,1739484637934,-445.80595584,0.00013698,2]
[353002040,1739484637943,-500.0,0.00013698,2]
[353002041,1739484637953,-501.16086823,0.00013698,2]
[353002042,1739484637963,-500.0,0.00013698,2]
[353002043,1739484637973,-500.0,0.00013698,2]
[353002044,1739484637983,-500.0,0.00013698,2]
[353002045,1739484637992,-500.0,0.00013698,2]
[353002046,1739484638002,-500.0,0.00013698,2]
[353002047,1739484638011,-482.64464465,0.00013698,2]
[353002048,1739484638021,-500.0,0.00013698,2]
[353002049,1739484638031,-509.78108522,0.00013698,2]
[353002050,1739484638042,-500.0,0.00013698,2]
[353002051,1739484638051,-425.2021342,0.00013698,2]
[353002052,1739484638062,-500.0,0.00013698,2]
[353002053,1739484638072,-500.0,0.00013698,2]
[353002054,1739484638081,-500.0,0.00013698,2]
[353002055,1739484638090,-500.0,0.00013698,2]
[353002056,1739484638100,-500.0,0.00013698,2]
[353002057,1739484638109,-500.0,0.00013698,2]
[353002058,1739484638119,-500.0,0.00013698,2]
[353002059,1739484638128,-500.0,0.00013698,2]
[353002060,1739484638137,-511.00099134,0.00013698,2]
[353002061,1739484638146,-500.0,0.00013698,2]
[353002062,1739484638156,-500.0,0.00013698,2]
[353002063,1739484638165,-500.0,0.00013698,2]
[353002064,1739484638174,-500.0,0.00013698,2]
[353002065,1739484638183,-511.57584221,0.00013698,2]
[353002066,1739484638192,-327.108618,0.00013698,2]
[353002067,1739484638202,-500.0,0.00013698,2]
[353002068,1739484638212,-500.0,0.00013698,2]
[353002069,1739484638224,-500.0,0.00013698,2]
[353002070,1739484638233,-500.0,0.00013698,2]
[353002071,1739484638242,-500.0,0.00013698,2]
[353002072,1739484638252,-500.0,0.00013698,2]
[353002073,1739484638261,-500.0,0.00013698,2]
[353002074,1739484638270,-500.0,0.00013698,2]
[353002075,1739484638280,-500.0,0.00013698,2]
[353002076,1739484638290,-500.0,0.00013698,2]
[353002077,1739484638300,-500.0,0.00013698,2]
[353002078,1739484638310,-500.0,0.00013698,2]
[353002079,1739484638320,-500.0,0.00013698,2]
[353002080,1739484638330,-500.0,0.00013698,2]
[353002081,1739484638341,-500.0,0.00013698,2]
[353002082,1739484638350,-500.0,0.00013698,2]
[353002083,1739484638360,-500.0,0.00013698,2]
[353002084,1739484638376,-156.27045151,0.00013698,2]
[353002085,1739484638386,-500.0,0.00013698,2]
[353002086,1739484638396,-500.0,0.00013698,2]
[353002087,1739484638406,-603.4190948,0.00013698,2]
[353002088,1739484638418,-500.0,0.00013698,2]
[353002089,1739484638427,-500.0,0.00013698,2]
[353002090,1739484638438,-500.0,0.00013698,2]
[353002091,1739484638448,-297.70420624,0.00013698,2]
[353002092,1739484638459,-500.0,0.00013698,2]
[353002093,1739484638469,-500.0,0.00013698,2]
[353002094,1739484638479,-500.0,0.00013698,2]
[353002095,1739484638488,-500.0,0.00013698,2]
[353002096,1739484638498,-500.0,0.00013698,2]
[353002097,1739484638510,-500.0,0.00013698,2]
[353002098,1739484638520,-503.15110495,0.00013698,2]
[353002099,1739484638531,-500.0,0.00013698,2]
[353002100,1739484638541,-500.0,0.00013698,2]
[353002101,1739484638550,-500.0,0.00013698,2]
[353002102,1739484638560,-537.39978055,0.00013698,2]
[353002103,1739484638570,-500.0,0.00013698,2]
[353002104,1739484638579,-500.0,0.00013698,2]
[353002105,1739484638589,-507.6504282,0.00013698,2]
[353002106,1739484638599,-500.0,0.00013698,2]
[353002107,1739484638610,-500.0,0.00013698,2]
[353002108,1739484638623,-500.0,0.00013698,2]
[353002109,1739484638633,-500.0,0.00013698,2]
[353002110,1739484638642,-500.0,0.00013698,2]
[353002111,1739484638652,-500.0,0.00013698,2]
[353002112,1739484638663,-423.91390297,0.00013698,2]
[353002113,1739484638672,-500.0,0.00013698,2]
[353002114,1739484638682,-553.49919283,0.00013698,2]
[353002115,1739484638694,-500.0,0.00013698,2]
[353002116,1739484638704,-500.0,0.00013698,2]
[353002117,1739484638714,-500.0,0.00013698,2]
[353002118,1739484638724,-501.31272975,0.00013698,2]
[353002119,1739484638735,-500.0,0.00013698,2]
[353002120,1739484638746,-500.0,0.00013698,2]
[353002121,1739484638756,-500.0,0.00013698,2]
[353002122,1739484638765,-500.0,0.00013698,2]
[353002123,1739484638775,-507.26186931,0.00013698,2]
[353002124,1739484638784,-500.0,0.00013698,2]
[353002125,1739484638794,-321.59207441,0.00013698,2]
[353002126,1739484638803,-500.0,0.00013698,2]
[353002127,1739484638815,-500.0,0.00013698,2]
[353002128,1739484638825,-500.0,0.00013698,2]
[353002129,1739484638835,-500.0,0.00013698,2]
[353002130,1739484638845,-500.0,0.00013698,2]
[353002131,1739484638855,-500.0,0.00013698,2]
[353002132,1739484638865,-500.0,0.00013698,2]
[353002133,1739484638874,-500.0,0.00013698,2]
[353002134,1739484638884,-500.0,0.00013698,2]
[353002135,1739484638894,-500.0,0.00013698,2]
[353002136,1739484638903,-500.0,0.00013698,2]
[353002137,1739484639057,-300.0,0.00013698,2]
[353002138,1739484639067,-500.0,0.00013698,2]
[353002139,1739484639077,-500.0,0.00013698,2]
[353002140,1739484639087,-500.0,0.00013698,2]
[353002141,1739484639097,-500.0,0.00013698,2]
[353002142,1739484639107,-500.0,0.00013698,2]
[353002143,1739484639117,-500.0,0.00013698,2]
[353002144,1739484639126,-500.0,0.00013698,2]
[353002145,1739484639135,-368.11559736,0.00013698,2]
[353002146,1739484639146,-539.2434124,0.00013698,2]
[353002147,1739484639155,-500.0,0.00013698,2]
[353002148,1739484639165,-500.0,0.00013698,2]
[353002149,1739484639174,-500.0,0.00013698,2]
[353002150,1739484639184,-500.0,0.00013698,2]
[353002151,1739484639193,-500.0,0.00013698,2]
[353002152,1739484639204,-500.0,0.00013698,2]
[353002153,1739484639214,-500.0,0.00013698,2]
[353002154,1739484639223,-392.13460441,0.00013698,2]
[353002155,1739484639233,-509.04549237,0.00013698,2]
[353002156,1739484639242,-500.0,0.00013698,2]
[353002157,1739484639252,-500.0,0.00013698,2]
[353002158,1739484639264,-500.0,0.00013698,2]
[353002159,1739484639274,-500.0,0.00013698,2]
[353002160,1739484639284,-500.0,0.00013698,2]
[353002161,1739484639294,-503.64867428,0.00013698,2]
[353002162,1739484639304,-500.0,0.00013698,2]
[353002163,1739484639315,-518.85325881,0.00013698,2]
[353002164,1739484639325,-500.0,0.00013698,2]
[353002165,1739484639335,-500.0,0.00013698,2]
[353002166,1739484639345,-500.0,0.00013698,2]
[353002167,1739484639355,-335.81725781,0.00013698,2]
[353002169,1739484639364,-500.0,0.00013698,2]
[353002170,1739484639374,-500.0,0.00013698,2]
[353002171,1739484639384,-500.0,0.00013698,2]
[353002173,1739484639394,-500.0,0.00013698,2]
[353002175,1739484639403,-760.99,0.00013698,2]
[353002176,1739484639413,-500.0,0.00013698,2]
[353002177,1739484639423,-500.0,0.00013698,2]
[353002178,1739484639432,-500.0,0.00013698,2]
[353002179,1739484639441,-500.0,0.00013698,2]
[353002180,1739484639451,-500.0,0.00013698,2]
[353002181,1739484639460,-500.0,0.00013698,2]
[353002182,1739484639470,-500.0,0.00013698,2]
[353002183,1739484639479,-500.0,0.00013698,2]
[353002184,1739484639488,-500.0,0.00013698,2]
[353002185,1739484639498,-500.0,0.00013698,2]
[353002186,1739484639507,-508.92376811,0.00013698,2]
[353002187,1739484639517,-500.90956825,0.00013698,2]
[353002188,1739484639526,-500.0,0.00013698,2]
[353002189,1739484639536,-500.0,0.00013698,2]
[353002190,1739484639546,-500.0,0.00013698,2]
[353002191,1739484639555,-500.0,0.00013698,2]
[353002192,1739484639566,-500.0,0.00013698,2]
[353002193,1739484639576,-500.0,0.00013698,2]
[353002194,1739484639586,-500.0,0.00013698,2]
[353002195,1739484639596,-500.0,0.00013698,2]
[353002196,1739484639607,-500.0,0.00013698,2]
[353002197,1739484639620,-500.0,0.00013698,2]
[353002198,1739484639629,-500.0,0.00013698,2]
[353002199,1739484639639,-500.0,0.00013698,2]
[353002201,1739484639648,-500.0,0.00013698,2]
[353002202,1739484639659,-500.0,0.00013698,2]
[353002204,1739484639668,-500.0,0.00013698,2]
[353002205,1739484639677,-500.0,0.00013698,2]
[353002206,1739484639687,-500.0,0.00013698,2]
[353002208,1739484639698,-500.0,0.00013698,2]
[353002210,1739484639708,-500.0,0.00013698,2]
[353002212,1739484639718,-500.0,0.00013698,2]
[353002214,1739484639728,-493.24649263,0.00013698,2]
[353002215,1739484639738,-500.0,0.00013698,2]
[353002216,1739484639748,-500.0,0.00013698,2]
[353002217,1739484639759,-500.0,0.00013698,2]
[353002218,1739484639769,-500.0,0.00013698,2]
[353002219,1739484639779,-500.0,0.00013698,2]
[353002220,1739484639789,-539.48730989,0.00013698,2]
[353002221,1739484639799,-500.0,0.00013698,2]
[353002222,1739484639810,-500.0,0.00013698,2]
[353002223,1739484639820,-500.0,0.00013698,2]
[353002224,1739484639829,-500.0,0.00013698,2]
[353002225,1739484639839,-500.0,0.00013698,2]
[353002226,1739484639849,-500.0,0.00013698,2]
[353002227,1739484639859,-500.0,0.00013698,2]
[353002228,1739484639869,-500.0,0.00013698,2]
[353002230,1739484639878,-500.0,0.00013698,2]
[353002232,1739484639888,-500.0,0.00013698,2]
[353002233,1739484639898,-500.0,0.00013698,2]
[353002234,1739484639908,-500.0,0.00013698,2]
[353002235,1739484639918,-430.75687463,0.00013698,2]
[353002236,1739484639928,-500.0,0.00013698,2]
[353002237,1739484639937,-326.05066181,0.00013698,2]
[353002238,1739484639947,-500.0,0.00013698,2]
[353002239,1739484639956,-500.0,0.00013698,2]
[353002240,1739484639966,-500.0,0.00013698,2]
[353002241,1739484639976,-500.0,0.00013698,2]
[353002242,1739484639986,-500.0,0.00013698,2]
[353002243,1739484639996,-500.0,0.00013698,2]
[353002244,1739484640005,-500.0,0.00013698,2]
[353002245,1739484640015,-500.0,0.00013698,2]
[353002246,1739484640024,-500.0,0.00013698,2]
[353002248,1739484640034,-500.0,0.00013698,2]
[353002249,1739484640043,-500.0,0.00013698,2]
[353002250,1739484640053,-500.0,0.00013698,2]
[353002251,1739484640064,-500.0,0.00013698,2]
[353002252,1739484640074,-500.0,0.00013698,2]
[353002253,1739484640084,-500.0,0.00013698,2]
[353002254,1739484640093,-500.0,0.00013698,2]
[353002255,1739484640103,-500.0,0.00013698,2]
[353002256,1739484640114,-500.0,0.00013698,2]
[353002257,1739484640123,-500.0,0.00013698,2]
[353002258,1739484640132,-500.0,0.00013698,2]
[353002259,1739484640142,-500.0,0.00013698,2]
[353002260,1739484640152,-580.16,0.00013698,2]
[353002261,1739484640161,-500.0,0.00013698,2]
[353002262,1739484640171,-500.0,0.00013698,2]
[353002263,1739484640181,-500.0,0.00013698,2]
[353002264,1739484640191,-500.0,0.00013698,2]
[353002266,1739484640200,-500.0,0.00013698,2]
[353002267,1739484640210,-500.0,0.00013698,2]
[353002268,1739484640220,-500.0,0.00013698,2]
[353002269,1739484640230,-500.0,0.00013698,2]
[353002270,1739484640241,-500.0,0.00013698,2]
[353002271,1739484640251,-500.0,0.00013698,2]
[353002272,1739484640261,-500.0,0.00013698,2]
[353002273,1739484640270,-500.0,0.00013698,2]
[353002274,1739484640280,-360.28274769,0.00013698,2]
[353002275,1739484640289,-506.14144107,0.00013698,2]
[353002276,1739484640299,-500.0,0.00013698,2]
[353002277,1739484640308,-609.92705253,0.00013698,2]
[353002278,1739484640318,-500.0,0.00013698,2]
[353002279,1739484640327,-500.0,0.00013698,2]
[353002280,1739484640336,-500.0,0.00013698,2]
[353002281,1739484640346,-500.0,0.00013698,2]
[353002282,1739484640356,-500.0,0.00013698,2]
[353002283,1739484640365,-500.0,0.00013698,2]